bitfinex-derivatives/quotes_BNBF0:USTF0_20250305
["timestamp","ask_amount","ask_price","bid_price","bid_amount"]
[1741166751224,1.603,602.08,601.95,0.60926096]
[1741166751425,0.668,602.08,601.96,0.60925544]
[1741166751629,0.668,602.08,601.97,0.60924993]
[1741166751829,0.668,602.08,601.98,0.27700746]
[1741166752030,0.668,602.08,601.99,0.60923889]
[1741166752334,0.668,602.08,602.0,0.60923337]
[1741166752529,0.668,602.08,602.01,0.27700746]
[1741166752730,0.668,602.08,602.02,0.33221487]
[1741166752925,0.668,602.08,602.03,0.27700746]
[1741166753427,0.668,602.08,602.04,0.27700746]
[1741166753630,0.668,602.08,602.05,0.27700746]
[1741166753827,0.668,602.08,602.06,0.3321928]
[1741166754026,0.668,602.08,602.07,0.27642762]
[1741166754231,0.668,602.08,602.07,0.6086149]
[1741166757227,0.668,602.08,602.07,0.33218728]
[1741166757430,0.668,602.08,602.07,0.60832185]
[1741166759938,0.73,602.25,602.07,0.60832185]
[1741166760234,0.73,602.25,602.08,0.60831633]
[1741166760435,0.73,602.25,602.09,0.60831082]
[1741166760636,0.73,602.25,602.1,0.6083053]
[1741166761035,0.73,602.25,602.11,0.60829978]
[1741166761234,0.73,602.25,602.12,0.60829427]
[1741166761438,1.164,602.45,602.13,0.60828875]
[1741166761735,1.164,602.45,602.14,0.27613457]
[1741166762330,1.164,602.45,602.15,0.33214315]
[1741166762533,1.164,602.45,602.16,0.27613457]
[1741166762730,1.164,602.45,602.17,0.33213212]
[1741166762934,1.164,602.45,602.18,0.27613457]
[1741166763136,1.164,602.45,602.19,0.33212109]
[1741166763330,1.164,602.45,602.2,0.27613457]
[1741166763530,1.164,602.45,602.21,0.33211006]
[1741166763735,1.164,602.45,602.22,0.27613457]
[1741166763934,1.164,602.45,602.23,0.33209903]
[1741166764133,1.164,602.45,602.24,0.27613457]
[1741166764330,1.164,602.45,602.25,0.332088]
[1741166764637,1.164,602.45,602.26,0.27613457]
[1741166766542,1.164,602.45,602.27,0.33207697]
[1741166766742,1.164,602.45,602.28,0.27613457]
[1741166766945,1.164,602.45,602.28,0.60820603]
[1741166767146,1.164,602.45,602.29,0.27613457]
[1741166767746,1.164,602.45,602.28,0.33207146]
[1741166767945,1.164,602.45,602.29,0.27602162]
[1741166768843,1.164,602.45,602.3,0.27602162]
[1741166769145,1.164,602.45,602.31,0.27602162]
[1741166769345,1.164,602.45,602.32,0.27602162]
[1741166769645,1.164,602.45,602.33,0.27602162]
[1741166769841,1.164,602.45,602.34,0.27602162]
[1741166770041,1.164,602.45,602.35,0.27602162]
[1741166770241,1.164,602.45,602.36,0.27602162]
[1741166770745,1.164,602.45,602.37,0.60804346]
[1741166770945,1.164,602.45,602.38,0.60803795]
[1741166771246,1.164,602.45,602.39,0.27602162]
[1741166771447,1.164,602.45,602.4,0.27602162]
[1741166771747,1.164,602.45,602.41,0.60802142]
[1741166772046,1.164,602.45,602.42,0.6080159]
[1741166772248,1.164,602.45,602.43,0.60801039]
[1741166772448,1.164,602.45,602.44,0.27602162]
[1741166773148,0.985,602.65,602.44,0.27602162]
[1741166773747,0.985,602.65,602.45,0.33197775]
[1741166773952,0.985,602.65,602.46,0.27602162]
[1741166774152,0.985,602.65,602.47,0.33196673]
[1741166774454,0.796,602.8,602.47,0.33196673]
[1741166774653,0.796,602.8,602.48,0.27606311]
[1741166776755,0.698,602.92,602.48,0.27606311]
[1741166778256,0.698,602.92,602.47,0.33196673]
[1741166778453,0.698,602.92,602.48,0.27608704]
[1741166783563,0.698,602.92,602.34,0.28867211]
[1741166783756,0.698,602.92,602.35,0.27647521]
[1741166784763,0.745,602.95,602.35,0.27647521]
[1741166785258,0.663,602.96,601.98,1.22818455]
[1741166785460,0.663,602.96,601.64,2.5189937]
[1741166785461,0.663,602.96,602.15,1.22818455]
[1741166785663,0.663,602.96,602.16,0.27645961]
[1741166785859,0.663,602.96,602.17,0.27645961]
[1741166786059,0.663,602.96,602.16,0.27645961]
[1741166786263,0.663,602.96,602.17,0.5651892]
[1741166786468,0.663,602.96,602.18,0.27645961]
[1741166786965,0.71,603.01,602.18,0.27645961]
[1741166787162,0.28873797,603.18,602.18,0.27645961]
[1741166788564,7.23666723,603.51,602.18,0.27645961]
[1741166788766,0.97867455,603.48,601.89,0.27645961]
[1741166788966,6.74749075,603.47,601.9,0.60874071]
[1741166789267,0.33142762,603.45,602.13,0.2887248]
[1741166789464,6.75231223,603.44,602.14,0.27645961]
[1741166789665,0.3314441,603.42,601.92,0.27645961]
[1741166789967,6.75231223,603.41,601.93,0.60872415]
[1741166790161,0.33146058,603.39,601.94,0.60871863]
[1741166790466,9.82893736,603.38,601.94,0.33225902]
[1741166790661,0.33147706,603.36,601.95,0.27674217]
[1741166790867,6.75231223,603.35,601.95,0.27674217]
[1741166791068,0.33149354,603.33,601.95,0.27674217]
[1741166791267,4.11002696,603.32,601.95,0.27674217]
[1741166791568,4.44153149,603.31,601.95,0.27674217]
[1741166791764,5.57083845,603.3,601.95,0.27674217]
[1741166791967,4.44154248,603.29,601.95,0.27674217]
[1741166792163,5.57084944,603.28,601.95,0.27674217]
[1741166792467,4.44155347,603.27,601.95,0.27674217]
[1741166792763,2.92857516,603.26,602.01,1.22818455]
[1741166792963,2.93200186,603.25,602.02,0.27674217]
[1741166793168,2.93200736,603.24,602.02,0.27674217]
[1741166793363,2.93201285,603.23,602.02,0.27674217]
[1741166793566,2.93201835,603.22,602.02,0.27674217]
[1741166793769,2.93202385,603.21,602.02,0.27674217]
[1741166793967,4.11589811,603.2,602.02,0.27674217]
[1741166794169,4.1173079,603.19,602.18,1.22818455]
[1741166794367,5.25055536,603.18,602.19,0.27674217]
[1741166794668,10.1756055,603.17,602.19,0.27674217]
[1741166794967,7.09905807,603.16,602.19,0.27674217]
[1741166795165,4.44890037,603.15,602.19,0.27674217]
[1741166795467,6.76740405,603.14,602.19,0.27674217]
[1741166795664,6.76740405,603.13,602.19,0.27674217]
[1741166795862,6.76740405,603.12,602.19,0.27674217]
[1741166796062,6.76740405,603.11,602.19,0.27674217]
[1741166796260,6.76740405,603.1,602.19,0.27674217]
[1741166796461,2.96017557,603.09,602.19,0.27674217]
[1741166796665,4.1196999,603.08,602.19,0.27674217]
[1741166796867,6.77128629,603.07,602.19,0.27674217]
[1741166797068,6.77128629,603.06,602.19,0.27674217]
[1741166797364,9.16179942,603.05,602.19,0.27674217]
[1741166797568,6.77128629,603.04,601.95,0.27674217]
[1741166797764,6.77128629,603.03,601.95,0.27674217]
[1741166797969,3.07662513,603.05,601.95,0.27674217]
[1741166797970,6.77128629,603.02,601.95,0.27674217]
[1741166798173,9.84791142,603.01,601.95,0.27674217]
[1741166798361,2.60285636,603.0,601.95,0.27674217]
[1741166798562,1.65639759,602.99,601.95,0.27674217]
[1741166798766,0.94561487,602.99,601.95,0.27674217]
[1741166798972,2.12948364,602.98,601.95,0.27674217]
[1741166799470,3.78588123,602.98,601.95,0.27674217]
[1741166799666,2.60201246,602.97,601.95,0.27674217]
[1741166799863,1.98809455,602.96,601.95,0.27674217]
[1741166800068,0.33170246,602.95,601.96,0.27674217]
[1741166800268,0.33170246,602.95,601.89,0.27674217]
[1741166800469,0.33170246,602.95,601.9,0.27674217]
[1741166800671,1.23685354,602.94,601.89,0.27674217]
[1741166800865,0.94797175,602.93,601.75,0.27674217]
[1741166801066,0.94797175,602.92,601.9,0.27674217]
[1741166801273,0.94797175,602.92,601.91,0.27674217]
[1741166801471,0.33172446,602.91,601.92,0.27674217]
[1741166801770,1.51559323,602.91,601.75,0.27674217]
[1741166802372,0.33172446,602.91,601.75,0.27674217]
[1741166803666,0.28899934,602.9,600.96,0.27674217]
[1741166803866,0.28899934,602.9,601.74,0.28899934]
[1741166803867,0.33173547,602.89,601.74,0.28899934]
[1741166804071,0.33173547,602.89,601.75,0.27674217]
[1741166804274,0.33173547,602.89,601.76,0.27674217]
[1741166804571,0.33173547,602.89,601.77,0.27674217]
[1741166804972,2.46160712,602.88,601.78,0.27674217]
[1741166805274,10.68065499,602.87,601.79,0.27674217]
[1741166805474,7.59235287,602.86,601.66,0.28900054]
[1741166805669,7.59235837,602.85,601.8,0.27674217]
[1741166805870,1.27097709,602.9,601.66,0.28900054]
[1741166805871,10.6806715,602.84,601.81,0.27674217]
[1741166806073,10.6806715,602.84,601.82,0.27674217]
[1741166806074,7.59236938,602.83,601.82,0.27674217]
[1741166806373,10.68068251,602.82,601.83,0.27674217]
[1741166806573,7.59238038,602.81,601.84,0.27674217]
[1741166806773,10.68069352,602.8,601.67,0.27674217]
[1741166806967,3.29119583,602.79,601.68,0.27674217]
[1741166807173,0.33179601,602.78,601.69,0.27674217]
[1741166807369,0.33179601,602.78,601.67,0.27674217]
[1741166807576,6.75633613,602.77,601.68,0.27674217]
[1741166807868,2.95821361,602.76,601.69,0.27674217]
[1741166808075,2.95821361,602.76,601.7,0.27674217]
[1741166808271,4.29603207,602.75,601.67,0.27674217]
[1741166808473,4.29603207,602.75,601.68,0.27674217]
[1741166808773,4.29603207,602.75,601.69,0.27674217]
[1741166808975,7.2542119,602.74,601.7,0.27674217]
[1741166809174,7.58603543,602.73,601.67,0.27674217]
[1741166809375,7.58604094,602.72,601.68,0.27674217]
[1741166809576,7.58604644,602.71,601.14,0.27674217]
[1741166809775,3.08830763,602.72,601.53,0.28905335]
[1741166809776,7.58605195,602.7,601.53,0.28905335]
[1741166809972,7.58605745,602.69,601.54,0.27674217]
[1741166810274,10.67244376,602.68,601.54,0.27674217]
[1741166810471,7.58414164,602.67,601.55,0.27674217]
[1741166810774,7.58414714,602.66,601.17,0.27674217]
[1741166810974,7.08624011,602.65,601.53,0.28905455]
[1741166811275,7.08624562,602.64,601.54,0.27674217]
[1741166811474,6.75437253,602.63,601.19,0.27674217]
[1741166811670,6.75437253,602.62,601.2,0.27674217]
[1741166811868,6.75437253,602.61,601.21,0.33266246]
[1741166812072,7.08626765,602.6,601.22,0.27674217]
[1741166812374,7.5843536,602.59,601.22,0.27674217]
[1741166812675,9.84268016,602.58,601.22,0.27674217]
[1741166812876,6.75437253,602.57,601.23,0.33265139]
[1741166813075,7.08628968,602.56,601.24,0.27674217]
[1741166813269,7.07933894,602.55,601.25,0.33264033]
[1741166813472,4.4437744,602.54,601.26,0.27674217]
[1741166813773,4.4437799,602.53,601.26,0.27674217]
[1741166813970,6.29893026,602.52,601.26,0.27674217]
[1741166814175,0.3319502,602.5,601.27,0.27674217]
[1741166814375,4.10428388,602.49,601.28,0.27674217]
[1741166814575,4.10428388,602.49,601.25,0.33264033]
[1741166814576,4.93437534,602.48,601.29,0.27674217]
[1741166814775,7.237645,602.47,601.3,0.27674217]
[1741166814978,9.82782239,602.46,601.31,0.27674217]
[1741166815176,6.73951476,602.45,601.32,0.27674217]
[1741166815377,4.10428388,602.44,601.33,0.27674217]
[1741166815574,4.43627265,602.43,601.34,0.27674217]
[1741166815773,4.43627816,602.42,601.35,0.27674217]
[1741166815978,2.92692679,602.41,601.26,0.27674217]
[1741166816173,2.59492699,602.4,601.26,0.27674217]
[1741166816373,2.92693781,602.39,601.26,0.27674217]
[1741166816578,2.45923315,602.38,601.26,0.27674217]
[1741166816776,1.27536989,602.37,601.26,0.27674217]
[1741166816971,0.94334805,602.36,601.26,0.27674217]
[1741166817176,0.33203287,602.35,601.26,0.27674217]
[1741166818779,0.28912179,602.34,601.26,0.27674217]
[1741166819680,0.28912179,602.34,601.25,0.33264033]
[1741166819875,0.28912179,602.34,601.26,0.27802274]
[1741166821479,0.33203287,602.35,601.26,0.27802274]
[1741166822377,0.33203287,602.35,601.27,0.610652]
[1741166822576,0.33203287,602.35,601.28,0.61064647]
[1741166822777,0.33203287,602.35,601.29,0.27802274]
[1741166822977,0.33203287,602.35,601.3,0.61063541]
[1741166823182,0.33203287,602.35,601.31,0.61062988]
[1741166823482,0.33203287,602.35,601.32,0.61062434]
[1741166823684,0.33203287,602.35,601.33,0.27802274]
[1741166823883,0.33203287,602.35,601.34,0.27802274]
[1741166824081,0.33203287,602.35,601.35,0.61060775]
[1741166824288,0.33203287,602.35,601.36,0.27802274]
[1741166824582,0.33203287,602.35,601.37,0.27802274]
[1741166824786,0.33203287,602.35,601.38,0.27802274]
[1741166824983,0.28900414,602.42,601.39,0.61058563]
[1741166825183,6.69979482,603.03,601.4,0.27802274]
[1741166825379,0.33166945,603.01,601.41,0.27802274]
[1741166825586,0.3049632,603.0,601.42,0.27802274]
[1741166825781,0.33168595,602.98,601.43,0.61056351]
[1741166825981,0.33168595,602.98,601.44,0.27802274]
[1741166827186,2.57679791,602.97,601.45,0.33252971]
[1741166827386,0.33170246,602.95,601.46,0.27802274]
[1741166827587,2.57679791,602.94,601.47,0.33251866]
[1741166827787,2.57679791,602.93,601.48,0.27802274]
[1741166827983,0.93830985,602.92,601.48,0.27802274]
[1741166828188,0.93830985,602.91,601.48,0.27802274]
[1741166828489,0.93830985,602.9,601.48,0.27802274]
[1741166828687,0.93830985,602.89,601.48,0.27802274]
[1741166828888,1.27005082,602.88,601.49,0.3325076]
[1741166829089,0.93830985,602.87,601.5,0.27802274]
[1741166829288,0.93830985,602.86,601.5,0.27802274]
[1741166829491,0.93830985,602.87,601.5,0.27802274]
[1741166829691,0.93830985,602.86,601.5,0.27802274]
[1741166829889,0.93830985,602.87,601.5,0.27802274]
[1741166830089,0.93830985,602.86,601.51,0.33249655]
[1741166830290,1.27006733,602.85,601.51,0.33249655]
[1741166830486,0.33176298,602.84,601.52,0.27802274]
[1741166830685,0.33176298,602.84,601.53,0.33248549]
[1741166830889,0.62071313,602.84,601.54,0.27802274]
[1741166831085,1.55902298,602.84,601.54,0.27802274]
[1741166831292,3.20025069,602.84,601.54,0.27802274]
[1741166831487,1.55902298,602.84,601.54,0.27802274]
[1741166831684,0.93830985,602.83,601.54,0.27802274]
[1741166831889,0.62071313,602.84,601.54,0.27802274]
[1741166831890,1.27008384,602.82,601.54,0.27802274]
[1741166832190,0.33177949,602.81,601.54,0.27802274]
[1741166832391,0.33177949,602.81,601.55,0.33247444]
[1741166832588,0.33177949,602.81,601.56,0.27802274]
[1741166833890,0.28894295,602.8,601.56,0.27802274]
[1741166834292,1.64145071,602.79,601.56,0.27802274]
[1741166834487,1.64145071,602.78,601.56,0.27802274]
[1741166834687,1.64145071,602.77,601.56,0.27802274]
[1741166834887,1.18034395,602.76,601.56,0.27802274]
[1741166835193,0.94109323,602.75,601.56,0.27802274]
[1741166835393,1.18034395,602.76,601.56,0.27802274]
[1741166835586,1.18034395,602.76,601.55,0.33247444]
[1741166835587,1.18034395,602.76,601.57,0.27802274]
[1741166835790,0.28894295,602.8,601.58,0.27802274]
[1741166835993,0.28894295,602.8,601.59,0.27802274]
[1741166836294,0.28894295,602.8,601.6,0.27802274]
[1741166836494,0.33177949,602.81,601.61,0.27802274]
[1741166836793,0.33177949,602.81,601.62,0.27802274]
[1741166836993,0.33177949,602.81,601.63,0.27802274]
[1741166837197,0.33177949,602.81,601.64,0.27802274]
[1741166837493,0.33177949,602.81,601.65,0.27740535]
[1741166837693,0.28888059,602.8,601.56,0.56628594]
[1741166837894,0.28888059,602.8,601.57,0.60986873]
[1741166838094,0.28888059,602.8,601.58,0.60986321]
[1741166838395,0.28888059,602.8,601.59,0.27740535]
[1741166838597,0.28888059,602.8,601.6,0.27740535]
[1741166838894,0.28888059,602.8,601.61,0.27740535]
[1741166839089,0.33177949,602.81,601.62,0.27740535]
[1741166839304,0.33177949,602.81,601.63,0.27740535]
[1741166839492,0.33177949,602.81,601.64,0.27740535]
[1741166839695,0.33177949,602.81,601.58,0.33245786]
[1741166839696,0.33177949,602.81,601.65,0.27740535]
[1741166839889,0.33177949,602.81,601.66,0.27740535]
[1741166840090,0.33177949,602.81,601.67,0.27740535]
[1741166840290,0.33177949,602.81,601.68,0.27740535]
[1741166840490,0.33177949,602.81,601.69,0.27740535]
[1741166840795,0.33177949,602.81,601.7,0.27740535]
[1741166840996,2.59546445,603.25,601.71,0.27740535]
[1741166841195,2.92700745,603.24,601.72,0.27740535]
[1741166841396,2.92700745,603.24,601.61,0.28879309]
[1741166841397,2.59546445,603.23,601.73,0.27740535]
[1741166841595,4.1078276,603.22,601.74,0.27740535]
[1741166841795,7.24656671,603.21,601.75,0.27740535]
[1741166841997,10.33193911,603.2,601.76,0.27740535]
[1741166842194,6.74907403,603.19,601.77,0.27740535]
[1741166842389,6.74907403,603.18,601.78,0.27740535]
[1741166842597,4.1078276,603.17,601.79,0.27740535]
[1741166842798,4.11005588,603.16,601.8,0.60938137]
[1741166843093,4.11006504,603.15,601.81,0.60937585]
[1741166843303,8.2718287,603.14,601.82,0.60937032]
[1741166843598,6.75376249,603.13,601.83,0.6093648]
[1741166843798,9.84050415,603.12,601.84,0.27704505]
[1741166843998,4.11061275,603.11,601.85,0.27704505]
[1741166844198,2.59706429,603.1,601.85,0.27704505]
[1741166844400,2.59706429,603.09,601.86,0.27704505]
[1741166844599,2.59706429,603.08,601.87,0.33229767]
[1741166844799,2.59706429,603.07,601.88,0.27704505]
[1741166845001,3.78480042,603.06,601.89,0.27704505]
[1741166845193,2.59833218,603.05,601.9,0.27704505]
[1741166845398,0.94561974,603.04,601.91,0.27704505]
[1741166845701,2.13208798,603.03,601.92,0.27704505]
[1741166845899,2.5989786,603.02,601.93,0.27704505]
[1741166846098,2.5989786,603.01,601.88,0.27704505]
[1741166846297,2.93065355,603.0,601.89,0.27721051]
[1741166846495,0.94561974,602.99,601.9,0.27721051]
[1741166846700,2.13208798,602.98,601.91,0.27721051]
[1741166846901,0.94561974,602.97,601.92,0.27721051]
[1741166847105,1.18646824,602.98,601.88,0.27721051]
[1741166847299,0.94705947,602.97,601.93,0.27721051]
[1741166847503,0.94738163,602.96,601.94,0.27721051]
[1741166847699,0.94739443,602.95,601.95,0.27721051]
[1741166847900,0.94739276,602.94,601.88,0.27721051]
[1741166848099,0.28883024,602.99,601.89,0.27721051]
[1741166848100,0.9474172,602.93,601.89,0.27721051]
[1741166848400,1.18946349,602.93,601.9,0.27721051]
[1741166848704,1.47831411,602.92,601.91,0.27721051]
[1741166848904,1.47831411,602.92,601.92,0.27721051]
[1741166849108,0.28885062,602.92,601.88,0.27721051]
[1741166849404,0.28885062,602.92,601.89,0.27721051]
[1741166849601,0.28885062,602.92,601.88,0.27721051]
[1741166849799,0.28885062,602.92,601.89,0.27721051]
[1741166850003,0.28885062,602.92,601.87,0.33229767]
[1741166850004,1.19003964,602.91,601.88,0.27721051]
[1741166850204,1.19003964,602.91,601.89,0.27721051]
[1741166850704,1.19003964,602.91,601.9,0.27721051]
[1741166850905,0.28885062,602.92,601.88,0.27721051]
[1741166851707,0.28885062,602.92,601.87,0.33229767]
[1741166851904,0.28885062,602.92,601.88,0.27723741]
[1741166853603,0.33172446,602.91,601.88,0.27723741]
[1741166854406,0.94874514,602.9,601.88,0.27723741]
[1741166854607,1.28048061,602.89,601.88,0.27723741]
[1741166854906,1.28052372,602.88,601.88,0.27723741]
[1741166855110,1.28052922,602.87,601.88,0.27723741]
[1741166855406,0.33175198,602.86,601.88,0.27723741]
[1741166856600,0.94896635,602.85,601.88,0.27723741]
[1741166856909,2.60596281,602.84,601.89,0.27723741]
[1741166857207,2.60596281,602.83,601.9,0.27723741]
[1741166857402,2.9377368,602.82,601.65,0.27723741]
[1741166857605,6.77616545,602.81,601.65,0.27723741]
[1741166857803,7.10795045,602.8,601.65,0.27723741]
[1741166858004,6.77616545,602.79,601.65,0.27723741]
[1741166858205,4.64047027,602.78,601.65,0.27723741]
[1741166858402,2.93778691,602.77,601.65,0.27723741]
[1741166858605,2.93779242,602.76,601.65,0.27723741]
[1741166858807,2.93779792,602.75,601.65,0.27723741]
[1741166859003,3.7974126,602.74,601.63,0.28895615]
[1741166859207,2.6059854,602.73,601.64,0.2774669]
[1741166859408,2.6059854,602.72,601.64,0.2774669]
[1741166859604,2.6059854,602.71,601.64,0.2774669]
[1741166859808,2.6059854,602.7,601.64,0.2774669]
[1741166860008,2.6059854,602.69,601.64,0.2774669]
[1741166860209,2.14041614,602.68,601.64,0.2774669]
[1741166860405,2.60642926,602.67,601.64,0.2774669]
[1741166860612,0.94898894,602.66,601.64,0.2774669]
[1741166860811,0.94898894,602.65,601.64,0.2774669]
[1741166861011,1.1914272,602.66,601.64,0.2774669]
[1741166861012,0.94898894,602.64,601.64,0.2774669]
[1741166861313,0.94919338,602.63,601.64,0.2774669]
[1741166861512,2.6067115,602.62,601.64,0.2774669]
[1741166861713,2.93860111,602.61,601.57,0.2774669]
[1741166862013,2.93860662,602.6,601.58,0.2774669]
[1741166862204,4.12603775,602.59,601.57,0.2774669]
[1741166862408,7.11007409,602.58,601.58,0.2774669]
[1741166862607,7.11012036,602.57,601.56,1.22818455]
[1741166862913,7.55642179,602.56,601.57,0.27790234]
[1741166863112,2.93897721,602.55,601.57,0.27790234]
[1741166863412,2.93898272,602.54,601.57,0.27790234]
[1741166863712,2.93878652,602.53,601.57,0.27790234]
[1741166863913,2.93879203,602.52,601.57,0.27790234]
[1741166864111,2.93879754,602.51,601.57,0.27790234]
[1741166864308,2.93880305,602.5,601.57,0.27790234]
[1741166864513,2.93880856,602.49,601.57,0.27790234]
[1741166864708,2.60685285,602.48,601.57,0.27790234]
[1741166864913,2.60676913,602.47,601.57,0.27790234]
[1741166865113,2.60676913,602.46,601.45,0.27790234]
[1741166865309,3.79819633,602.45,601.46,0.27790234]
[1741166865513,2.60676913,602.44,601.07,0.27790234]
[1741166865715,2.1407917,602.43,601.08,0.61063675]
[1741166865915,0.9493645,602.42,601.09,0.27790234]
[1741166866115,1.1914272,602.43,601.1,0.27790234]
[1741166866316,0.94900555,602.42,601.11,0.27790234]
[1741166866616,1.65689875,602.48,601.12,0.27790234]
[1741166866816,3.79728099,602.47,601.13,0.27790234]
[1741166867117,2.60584509,602.46,601.28,1.22818455]
[1741166867317,2.93782284,602.45,601.28,1.22818455]
[1741166867515,2.60584509,602.44,601.29,0.27806594]
[1741166867713,2.60584509,602.43,601.29,0.27806594]
[1741166867914,0.94894634,602.42,601.29,0.27806594]
[1741166868112,0.94894634,602.41,601.29,0.27806594]
[1741166868309,1.48054688,602.44,601.29,0.27806594]
[1741166868511,1.1914359,602.4,601.29,0.27806594]
[1741166868917,0.33201082,602.39,601.29,0.27806594]
[1741166869216,0.33201082,602.39,601.3,0.27806594]
[1741166869414,0.33201082,602.39,601.31,0.27806877]
[1741166869621,0.33201082,602.39,601.21,0.27806877]
[1741166869819,0.33201082,602.39,601.22,0.27806877]
[1741166870011,0.33201082,602.39,601.23,0.27806877]
[1741166870215,0.33201082,602.39,601.24,0.27806877]
[1741166870413,0.33201082,602.39,601.25,0.27806877]
[1741166870613,0.33201082,602.39,601.26,0.27806877]
[1741166870817,0.28908336,602.38,601.27,0.27806877]
[1741166871017,0.28908336,602.38,601.19,0.28908336]
[1741166871219,0.28908336,602.38,601.2,0.27799005]
[1741166871416,0.28908336,602.38,601.21,0.61065251]
[1741166871616,0.28908336,602.38,601.22,0.27799005]
[1741166871814,0.28908336,602.38,601.21,0.33266246]
[1741166871815,0.28908336,602.38,601.23,0.61064144]
[1741166872023,0.28908336,602.38,601.24,0.27799005]
[1741166872224,0.28908336,602.38,601.25,0.27799005]
[1741166872517,0.33201082,602.39,601.26,0.27799005]
[1741166872720,0.28911699,602.37,601.24,0.27799005]
[1741166872925,0.28911699,602.37,601.25,0.27797413]
[1741166873126,0.28911699,602.37,601.26,0.27797413]
[1741166873319,0.28911699,602.37,601.27,0.27797413]
[1741166873522,0.28911699,602.37,601.28,0.27797413]
[1741166873719,0.28911699,602.37,601.29,0.27797413]
[1741166873923,0.28911699,602.37,601.3,0.27797413]
[1741166874120,0.28911699,602.37,601.31,0.27797413]
[1741166874325,0.28911699,602.37,601.32,0.27797413]
[1741166874826,0.28911699,602.37,601.33,0.27797413]
[1741166875025,0.28911699,602.37,601.34,0.27797413]
[1741166875225,0.28911699,602.37,601.35,0.27797413]
[1741166875426,0.28911699,602.37,601.36,0.27797413]
[1741166875628,0.33201082,602.39,601.37,0.27797413]
[1741166875927,0.33201082,602.39,601.38,0.27797413]
[1741166876127,0.33201082,602.39,601.39,0.27797413]
[1741166876326,0.33201082,602.39,601.4,0.27797413]
[1741166876530,0.33201082,602.39,601.41,0.27797413]
[1741166876726,0.33201082,602.39,601.42,0.27797413]
[1741166876923,0.33201082,602.39,601.43,0.27797413]
[1741166877126,0.33201082,602.39,601.44,0.27797413]
[1741166877326,0.33201082,602.39,601.45,0.27797413]
[1741166877527,0.33201082,602.39,601.46,0.27797413]
[1741166877823,0.33201082,602.39,601.29,0.28901374]
[1741166877824,0.33201082,602.39,601.47,0.27797413]
[1741166878024,0.33201082,602.39,601.48,0.27797413]
[1741166878226,0.33201082,602.39,601.49,0.27769578]
[1741166878526,0.33201082,602.39,601.5,0.27769578]
[1741166878728,0.33201082,602.39,601.51,0.27769578]
[1741166879029,0.33201082,602.39,601.52,0.27769578]
[1741166879231,0.33201082,602.39,601.53,0.27769578]
[1741166879430,0.33201082,602.39,601.54,0.27769578]
[1741166879632,0.33201082,602.39,601.55,0.27769578]
[1741166879834,0.33201082,602.39,601.56,0.27769578]
[1741166880034,0.33201082,602.39,601.57,0.27769578]
[1741166880327,0.33201082,602.39,601.32,1.22818455]
[1741166880328,0.33201082,602.39,601.58,0.27769578]
[1741166880533,0.33201082,602.39,601.59,0.27769578]
[1741166880725,0.33201082,602.39,601.6,0.27769578]
[1741166881035,0.33201082,602.39,601.61,0.27769578]
[1741166881235,0.33201082,602.39,601.62,0.27769578]
[1741166881535,0.33201082,602.39,601.63,0.27769578]
[1741166881727,0.33201082,602.39,601.32,1.22818455]
[1741166881728,0.33201082,602.39,601.33,0.27769578]
[1741166881933,6.77822578,602.76,601.34,0.61028632]
[1741166882132,2.60586097,602.75,601.35,0.27769578]
[1741166882329,0.94891506,602.74,601.36,0.27769578]
[1741166882634,0.94891506,602.73,601.38,0.33256842]
[1741166882836,1.47998525,602.73,601.39,0.27769578]
[1741166883133,2.6090163,602.72,601.4,0.27769578]
[1741166883335,3.80003341,602.71,601.41,0.27769578]
[1741166883527,2.6090163,602.7,601.39,0.27769578]
[1741166883832,3.80003341,602.69,601.4,0.27769578]
[1741166884030,2.6090163,602.68,601.39,0.27769578]
[1741166884230,2.6090163,602.67,601.4,0.27769578]
[1741166884430,2.6090163,602.66,601.39,0.27769578]
[1741166884631,3.8004149,602.65,601.4,0.27769578]
[1741166884832,0.95001311,602.64,601.39,0.27769578]
[1741166885029,0.95001311,602.63,601.4,0.27769578]
[1741166885228,1.19101711,602.62,601.4,0.27769578]
[1741166885433,1.19101711,602.62,601.41,0.27769578]
[1741166885733,0.28901014,602.61,601.42,0.27769578]
[1741166885934,0.28901014,602.61,601.43,0.27769578]
[1741166886234,0.28901014,602.61,601.44,0.27769578]
[1741166886435,0.28901014,602.61,601.39,0.27769578]
[1741166886633,0.28901014,602.61,601.4,0.27769578]
[1741166886837,0.28901014,602.61,601.41,0.61024761]
[1741166887031,1.19316024,602.6,601.42,0.61024208]
[1741166887335,1.19316024,602.6,601.43,0.61023655]
[1741166887537,0.28901014,602.61,601.44,0.27769578]
[1741166887731,0.28901014,602.61,601.45,0.27769578]
[1741166887939,0.28901014,602.61,601.46,0.27769578]
[1741166888133,0.28901014,602.61,601.47,0.27769578]
[1741166888533,0.28901014,602.61,601.52,1.22818455]
[1741166888735,0.28901014,602.61,601.53,0.27769578]
[1741166890638,1.19312989,602.75,601.62,1.22818455]